fUSD/lending_fUSD_20260121
["ID","MTS","AMOUNT","RATE_DAILY","PERIOD"]
[402905524,1768974632053,-31.04406926,0.00017025,2]
[402905525,1768974632062,-523.19893655,0.00017025,2]
[402905527,1768974632072,-922.98494083,0.00017025,2]
[402905529,1768974632081,-1380.73027138,0.00017025,2]
[402905532,1768974632090,-1868.1696,0.00017025,2]
[402905534,1768974632099,-300.0,0.00017197,2]
[402905536,1768974632108,-207.42,0.00017198,2]
[402905538,1768974632119,-500.0,0.00017198,2]
[402905540,1768974632128,-500.0,0.00017198,2]
[402905542,1768974632137,-500.0,0.00017198,2]
[402905544,1768974632146,-500.0,0.00017198,2]
[402905546,1768974632156,-500.0,0.00017198,2]
[402905548,1768974632165,-500.0,0.00017198,2]
[402905550,1768974632176,-500.0,0.00017198,2]
[402905552,1768974632185,-500.0,0.00017198,2]
[402905554,1768974632194,-500.0,0.00017198,2]
[402905555,1768974632204,-500.0,0.00017198,2]
[402905556,1768974632213,-500.0,0.00017198,2]
[402905557,1768974632222,-500.0,0.00017198,2]
[402905558,1768974632231,-90.08806425,0.00017198,2]
[402905559,1768974632243,-409.91193575,0.00017198,2]
[402905560,1768974632252,-500.0,0.00017198,2]
[402905561,1768974632261,-596.37000465,0.00017198,2]
[402905562,1768974632270,-500.0,0.00017198,2]
[402905563,1768974632279,-500.0,0.00017198,2]
[402905564,1768974632289,-500.0,0.00017198,2]
[402905565,1768974632297,-500.0,0.00017198,2]
[402905566,1768974632306,-500.0,0.00017198,2]
[402905567,1768974632315,-500.0,0.00017198,2]
[402905568,1768974632324,-500.0,0.00017198,2]
[402905569,1768974632333,-500.0,0.00017198,2]
[402905570,1768974632342,-500.0,0.00017198,2]
[402905571,1768974632351,-500.0,0.00017198,2]
[402905572,1768974632359,-500.0,0.00017198,2]
[402905573,1768974632370,-6293.8,0.00017199,2]
[402905574,1768974632379,-13988.61,0.00017199,2]
[402905575,1768974632388,-999.99,0.00017199,2]
[402905576,1768974632397,-500.0,0.00017205,2]
[402905577,1768974632406,-150.0,0.00017365,2]
[402905578,1768974632415,-500.0,0.00017365,2]
[402905579,1768974632424,-150.0,0.00017365,2]
[402905580,1768974632433,-150.0,0.00017365,2]
[402905581,1768974632442,-150.0,0.0001742,2]
[402905582,1768974632451,-500.0,0.0001742,2]
[402905583,1768974632460,-150.0,0.0001742,2]
[402905584,1768974632469,-150.0,0.0001742,2]
[402905585,1768974632478,-207.43,0.00017472,2]
[402905586,1768974632486,-500.0,0.00017475,2]
[402905587,1768974632495,-155.78864891,0.00017475,2]
[402905588,1768974632505,-200.0,0.00017475,2]
[402905589,1768974632514,-151.0,0.00017486,2]
[402905590,1768974632523,-150.0,0.00017504,2]
[402905591,1768974632532,-500.0,0.00017504,2]
[402905592,1768974632541,-500.0,0.00017504,2]
[402905593,1768974632549,-281.77524195,0.00017504,2]
[402905594,1768974632558,-500.0,0.00017504,2]
[402905595,1768974632567,-250.0,0.00017504,2]
[402905596,1768974632577,-150.0,0.00017504,2]
[402905597,1768974632586,-500.0,0.00017504,2]
[402905598,1768974632595,-150.0,0.00017504,2]
[402905599,1768974632604,-150.0,0.00017504,2]
[402905600,1768974632613,-500.0,0.00017504,2]
[402905601,1768974632622,-150.0,0.00017504,2]
[402905602,1768974632631,-500.0,0.00017504,2]
[402905603,1768974632640,-500.0,0.00017504,2]
[402905604,1768974632649,-150.0,0.00017504,2]
[402905605,1768974632658,-500.0,0.00017504,2]
[402905606,1768974632667,-150.0,0.00017504,2]
[402905607,1768974632676,-500.0,0.00017504,2]
[402905608,1768974632685,-500.0,0.00017529,2]
[402905609,1768974632694,-153.75,0.00017535,2]
[402905610,1768974632703,-150.0,0.00017559,2]
[402905611,1768974632714,-500.0,0.00017559,2]
[402905612,1768974632722,-500.0,0.00017559,2]
[402905613,1768974632732,-500.0,0.00017559,2]
[402905614,1768974632741,-500.0,0.00017559,2]
[402905615,1768974632751,-150.0,0.00017559,2]
[402905616,1768974632760,-150.0,0.00017559,2]
[402905617,1768974632769,-500.0,0.00017559,2]
[402905618,1768974632778,-500.0,0.00017559,2]
[402905619,1768974632790,-500.0,0.00017559,2]
[402905620,1768974632799,-150.0,0.00017559,2]
[402905621,1768974632808,-579.63385986,0.00017559,2]
[402905622,1768974632817,-150.0,0.00017559,2]
[402905623,1768974632826,-151.0,0.00017565,2]
[402905624,1768974632835,-151.0,0.00017565,2]
[402905625,1768974632844,-500.0,0.00017584,2]
[402905626,1768974632853,-500.0,0.00017614,2]
[402905627,1768974632862,-500.0,0.00017614,2]
[402905628,1768974632871,-500.0,0.00017614,2]
[402905629,1768974632881,-150.0,0.00017614,2]
[402905630,1768974632890,-258.32254134,0.00017614,2]
[402905631,1768974632898,-247.22335931,0.00017614,2]
[402905632,1768974632908,-500.0,0.00017614,2]
[402905633,1768974632917,-500.0,0.00017614,2]
[402905634,1768974632927,-500.0,0.00017614,2]
[402905635,1768974632936,-200.0,0.00017614,2]
[402905636,1768974632945,-150.0,0.00017614,2]
[402905637,1768974632955,-2586.9403669,0.00017623,2]
[402905638,1768974632964,-7007.81,0.00017639,2]
[402905639,1768974632973,-27733.4428852,0.00017639,2]
[402905640,1768974632986,-5091.7871148,0.00017639,2]
[402905641,1768974632995,-9999.99,0.00017639,2]
[402905642,1768974633004,-150.99,0.00017639,2]
[402905643,1768974633014,-5967.96,0.00017639,2]
[402905644,1768974633023,-315.86032372,0.00017639,2]
[402905645,1768974633032,-2586.94036685,0.00017654,2]
[402905646,1768974633041,-500.0,0.00017668,2]
[402905647,1768974633050,-500.0,0.00017668,2]
[402905648,1768974633059,-500.0,0.00017668,2]
[402905649,1768974633068,-500.0,0.00017668,2]
[402905650,1768974633079,-500.0,0.00017668,2]
[402905651,1768974633088,-150.0,0.00017668,2]
[402905652,1768974633097,-2586.94036685,0.00017685,2]
[402905653,1768974633106,-2586.94036685,0.00017715,2]
[402905654,1768974633116,-6999.3,0.00017719,2]
[402905655,1768974633125,-150.99,0.00017719,2]
[402905656,1768974633135,-499.99,0.00017719,2]
[402905657,1768974633145,-19999.99,0.00017723,2]
[402905658,1768974633154,-419.18,0.00017723,2]
[402905659,1768974633164,-632.79683672,0.00017723,2]
[402905660,1768974633173,-500.0,0.00017723,2]
[402905661,1768974633183,-500.0,0.00017723,2]
[402905662,1768974633192,-360.2469951,0.00017723,2]
[402905663,1768974633202,-500.0,0.00017723,2]
[402905664,1768974633211,-150.0,0.00017723,2]
[402905665,1768974633220,-2586.94036685,0.00017746,2]
[402905666,1768974633230,-2586.94036685,0.00017777,2]
[402905667,1768974633239,-500.0,0.00017778,2]
[402905668,1768974633249,-500.0,0.00017778,2]
[402905669,1768974633259,-197.47487293,0.00017778,2]
[402905670,1768974633268,-500.0,0.00017778,2]
[402905671,1768974633277,-391.3649,0.000178,2]
[402905672,1768974633287,-21426.81102473,0.000178,2]
[402905673,1768974633296,-280.6551231,0.000178,2]
[402905674,1768974633306,-2586.94036685,0.00017808,2]
[402905675,1768974633316,-150.0,0.00017808,2]
[402905676,1768974633326,-21426.81102473,0.00017811,2]
[402905677,1768974633334,-1823.34,0.0001782,2]
[402905678,1768974633344,-21426.81102473,0.00017822,2]
[402905679,1768974633353,-96917.03137091,0.0001783,2]
[402905680,1768974633362,-500.0,0.00017833,2]
[402905681,1768974633371,-500.0,0.00017833,2]
[402905682,1768974633380,-21426.81102473,0.00017833,2]
[402905683,1768974633390,-586.81884532,0.00017834,2]
[402905684,1768974633399,-2586.94036685,0.00017838,2]
[402905685,1768974633408,-21426.81102473,0.00017844,2]
[402905686,1768974633418,-21426.81102473,0.00017856,2]
[402905687,1768974633427,-150.0,0.00017863,2]
[402905688,1768974633436,-500.0,0.00017866,2]
[402905689,1768974633446,-21426.81102473,0.00017867,2]
[402905690,1768974633455,-2586.94036685,0.00017869,2]
[402905691,1768974633464,-21426.81102473,0.00017878,2]
[402905692,1768974633473,-93.42476595,0.00017888,2]
[402905693,1768974633485,-406.57523405,0.00017888,2]
[402905694,1768974633495,-517.65771857,0.00017888,2]
[402905695,1768974633508,-21426.81102473,0.00017889,2]
[402905696,1768974633518,-1823.34,0.0001789,2]
[402905697,1768974633527,-11444.32679564,0.0001789,2]
[402905698,1768974633537,-400.87523048,0.00017896,2]
[402905699,1768974633546,-500.0,0.00017896,2]
[402905700,1768974633555,-500.0,0.00017899,2]
[402905701,1768974633564,-500.0,0.00017899,2]
[402905702,1768974633573,-500.0,0.00017899,2]
[402905703,1768974633584,-500.0,0.00017899,2]
[402905704,1768974633593,-500.0,0.00017899,2]
[402905705,1768974633602,-500.0,0.00017899,2]
[402905706,1768974633612,-387.3461864,0.00017899,2]
[402905707,1768974633623,-9492.0,0.000179,2]
[402905708,1768974633634,-150.0,0.000179,2]
[402905709,1768974633643,-5467.6878,0.000179,2]
[402905710,1768974633652,-617.8111,0.000179,2]
[402905711,1768974633662,-2586.94036685,0.000179,2]
[402905712,1768974633671,-482.14296142,0.000179,2]
[402905713,1768974633680,-21426.81102473,0.000179,2]
[402905714,1768974633690,-1582.86126496,0.000179,2]
[402905715,1768974633701,-1063.17120756,0.000179,2]
[402905716,1768974633713,-996.78523006,0.000179,2]
[402905717,1768974633726,-2739.10255715,0.00017915,2]
[402905718,1768974633739,-200.0,0.00017918,2]
[402905719,1768974633748,-500.0,0.00017942,2]
[402905720,1768974633758,-200.0,0.00017971,2]
[402905721,1768974633767,-500.0,0.00017973,2]
[402905722,1768974633776,-150.0,0.00017973,2]
[402905723,1768974633786,-586.19616648,0.00017977,2]
[402905724,1768974633795,-558.50405266,0.00017989,2]
[402905725,1768974633803,-500.0,0.00017992,2]
[402905726,1768974633812,-500.0,0.00017992,2]
[402905727,1768974633821,-3024.9646569,0.00017993,2]
[402905728,1768974633830,-1154.955617,0.00017993,2]
[402905729,1768974633839,-57562.1015518,0.00017993,2]
[402905730,1768974633848,-175.7585519,0.00017993,2]
[402905731,1768974633857,-150.00685037,0.00017996,2]
[402905732,1768974633866,-500.0,0.00017997,2]
[402905733,1768974633876,-293.76275679,0.00017999,2]
[402905734,1768974633886,-515.68328521,0.00017999,2]
[402905735,1768974633895,-300.0,0.00017999,2]
[402905736,1768974633903,-159.52,0.00017999,2]
[402905737,1768974633912,-417.84617864,0.00017999,2]
[402905738,1768974633921,-500.0,0.00017999,2]
[402905739,1768974633930,-500.0,0.00017999,2]
[402905740,1768974633940,-500.0,0.00017999,2]
[402905741,1768974633950,-500.0,0.00017999,2]
[402905742,1768974633959,-500.0,0.00017999,2]
[402905743,1768974633969,-207.27738091,0.00017999,2]
[402905744,1768974633979,-300.0,0.00017999,2]
[402905745,1768974633988,-300.0,0.00017999,2]
[402905746,1768974633997,-150.0,0.00017999,2]
[402905747,1768974634006,-1000.0,0.00018,2]
[402905748,1768974634016,-431.82432154,0.00018,2]
[402905749,1768974634025,-178961.06057333,0.00018,2]
[402905754,1768974637696,-1510.5689,0.00017099,2]
[402905755,1768974637706,-186.61,0.0001782,2]
[402905756,1768974637718,-2809320.15405296,0.00018,2]
[402905779,1768974639881,-151.0,0.00017906,2]
[402905780,1768974639893,-6870.68188889,0.00018,2]
[402905781,1768974639908,-5074.96264286,0.00018,2]
[402905782,1768974639923,-2190.19913675,0.00018,2]
[402905783,1768974639937,-7087.77793369,0.00018,2]
[402905784,1768974640207,-2703.97403998,0.00018,2]
[402905807,1768974644513,-151.0,0.00017952,2]
[402905808,1768974644524,-868499.26376191,0.00018,2]
[402905817,1768974690937,1010.10233531,0.00015,3]
[402905818,1768974706009,179.82,0.00017161,2]
[402905819,1768974715497,500.0,0.00017198,2]
[402905820,1768974715540,202.88619949,0.00017198,2]
[402905821,1768974746355,500.0,0.00017198,2]
[402905822,1768974759535,12486.98301277,0.00017099,2]
[402905824,1768975285102,150.0,0.000226,120]
[402905825,1768975431382,166.66,0.00015763,2]
[402905826,1768975431587,166.66,0.00016095,2]
[402905827,1768975440959,652.698843,0.00016344,2]
[402905828,1768975627209,1647.69,0.00013632,2]
[402905869,1768975831868,-166.66,0.00016427,2]
[402905870,1768975831877,-288.0,0.00016427,2]
[402905871,1768975831887,-166.66,0.00016759,2]
[402905872,1768975831896,-150.0018124,0.00016825,2]
[402905873,1768975831905,-1000.0,0.00016829,2]
[402905874,1768975831915,-419.4,0.00016989,2]
[402905875,1768975831924,-300.0,0.00016997,2]
[402905876,1768975831934,-1200.0,0.00016997,2]
[402905877,1768975831943,-300.0,0.00016997,2]
[402905878,1768975831953,-300.0,0.00016997,2]
[402905879,1768975831963,-1510.5689,0.00016998,2]
[402905880,1768975831972,-1246.9797,0.00016999,2]
[402905881,1768975831983,-3090.7751,0.00016999,2]
[402905882,1768975831994,-13325.25012639,0.00016999,2]
[402905883,1768975832004,-553.30452999,0.00016999,2]
[402905884,1768975832014,-166.66,0.0001709,2]
[402905885,1768975832024,-500.0,0.00017098,2]
[402905886,1768975832034,-500.0,0.00017098,2]
[402905887,1768975832043,-500.0,0.00017098,2]
[402905888,1768975832053,-238.67167266,0.00017098,2]
[402905889,1768975832064,-500.0,0.00017098,2]
[402905890,1768975832074,-500.0,0.00017098,2]
[402905891,1768975832083,-500.0,0.00017098,2]
[402905892,1768975832093,-500.0,0.00017098,2]
[402905893,1768975832103,-455.15222274,0.00017098,2]
[402905894,1768975832113,-267.66,0.00017098,2]
[402905895,1768975832123,-8739.71,0.00017098,2]
[402905896,1768975832133,-821.957,0.00017098,2]
[402905897,1768975832144,-204.874,0.00017098,2]
[402905899,1768975832153,-489.99,0.00017098,2]
[402905900,1768975832163,-246.0,0.00017098,2]
[402905901,1768975832172,-510.66982026,0.00017098,2]
[402905902,1768975832181,-334.5472959,0.00017099,2]
[402905903,1768975832190,-585.6094434,0.00017099,2]
[402905904,1768975832200,-220.89157111,0.00017099,2]
[402905905,1768975832211,-574.12855637,0.00017099,2]
[402905906,1768975832221,-8901.19685925,0.00017099,2]
[402905907,1768975832230,-174.61919142,0.00017099,2]
[402905908,1768975832240,-250.0,0.00017099,2]
[402905909,1768975832249,-3002.70085788,0.00017099,2]
[402905910,1768975832258,-250.0,0.00017099,2]
[402905911,1768975832267,-250.0,0.00017099,2]
[402905912,1768975832276,-250.0,0.00017099,2]
[402905913,1768975832285,-250.0,0.00017099,2]
[402905914,1768975832294,-250.0,0.00017099,2]
[402905915,1768975832303,-226.36924572,0.00017099,2]
[402905916,1768975832312,-500.0,0.00017099,2]
[402905917,1768975832321,-500.0,0.00017099,2]
[402905918,1768975832331,-322.6107,0.00017099,2]
[402905919,1768975832340,-2000.0,0.00017099,2]
[402905920,1768975832350,-500.0,0.00017099,2]
[402905921,1768975832359,-2000.0,0.00017099,2]
[402905922,1768975832368,-500.0,0.00017099,2]
[402905923,1768975832378,-2000.0,0.00017099,2]
[402905924,1768975832388,-250.0,0.00017099,2]
[402905925,1768975832397,-500.0,0.00017099,2]
[402905926,1768975832407,-2000.0,0.00017099,2]
[402905927,1768975832416,-250.0,0.00017099,2]
[402905928,1768975832425,-500.0,0.00017099,2]
[402905929,1768975832435,-2000.0,0.00017099,2]
[402905930,1768975832444,-250.0,0.00017099,2]
[402905931,1768975832453,-500.0,0.00017099,2]
[402905932,1768975832462,-262.65831909,0.00017099,2]
[402905933,1768975832473,-2000.0,0.00017099,2]
[402905934,1768975832483,-500.0,0.00017099,2]
[402905935,1768975832492,-2000.0,0.00017099,2]
[402905936,1768975832502,-500.0,0.00017099,2]
[402905937,1768975832511,-2000.0,0.00017099,2]
[402905938,1768975832521,-500.0,0.00017099,2]
[402905939,1768975832530,-500.0,0.00017099,2]
[402905940,1768975832539,-500.0,0.00017099,2]
[402905941,1768975832548,-500.0,0.00017099,2]
[402905942,1768975832557,-500.0,0.00017099,2]
[402905943,1768975832567,-500.0,0.00017099,2]
[402905944,1768975832576,-500.0,0.00017099,2]
[402905945,1768975832856,-500.0,0.00017099,2]
[402905946,1768975832866,-2000.0,0.00017099,2]
[402905947,1768975832876,-620.0,0.00017099,2]
[402905948,1768975832885,-500.0,0.00017099,2]
[402905949,1768975832897,-2000.0,0.00017099,2]
[402905950,1768975832908,-500.0,0.00017099,2]
[402905951,1768975832917,-2000.0,0.00017099,2]
[402905952,1768975832927,-500.0,0.00017099,2]
[402905953,1768975832936,-2000.0,0.00017099,2]
[402905954,1768975832946,-500.0,0.00017099,2]
[402905955,1768975832955,-500.0,0.00017099,2]
[402905956,1768975832964,-2000.0,0.00017099,2]
[402905957,1768975832973,-500.0,0.00017099,2]
[402905958,1768975832983,-500.0,0.00017099,2]
[402905959,1768975832992,-500.0,0.00017099,2]
[402905960,1768975833002,-500.0,0.00017099,2]
[402905961,1768975833011,-500.0,0.00017099,2]
[402905962,1768975833020,-2567.0,0.00017099,2]
[402905963,1768975833029,-500.0,0.00017099,2]
[402905964,1768975833038,-151.0,0.00017308,2]
[402905965,1768975833049,-151.0,0.0001731,2]
[402905966,1768975833060,-178.12,0.00017312,2]
[402905967,1768975833071,-151.0,0.00017321,2]
[402905968,1768975833082,-219.62680432,0.0001734,2]
[402905969,1768975833091,-201.31716021,0.00017373,2]
[402905970,1768975833103,-196.77793317,0.00017373,2]
[402905971,1768975833112,-166.66,0.00017422,2]
[402905972,1768975833122,-179.82,0.00017591,2]
[402905973,1768975833133,-507.32904147,0.00017639,2]
[402905974,1768975833150,-346.92554585,0.00017647,2]
[402905975,1768975833160,-174.58,0.00017664,2]
[402905976,1768975833169,-1000.0,0.00017708,2]
[402905977,1768975833179,-27556.0171,0.00017711,2]
[402905978,1768975833189,-216.07295226,0.00017723,2]
[402905979,1768975833198,-500.0,0.00017723,2]
[402905980,1768975833207,-500.0,0.00017723,2]
[402905981,1768975833217,-500.0,0.00017723,2]
[402905982,1768975833227,-500.0,0.00017723,2]
[402905983,1768975833236,-500.0,0.00017723,2]
[402905984,1768975833245,-500.0,0.00017723,2]
[402905985,1768975833256,-500.0,0.00017723,2]
[402905986,1768975833265,-150.0,0.00017723,2]
[402905987,1768975833275,-500.0,0.00017723,2]
[402905988,1768975833284,-500.0,0.00017723,2]
[402905989,1768975833294,-500.0,0.00017723,2]
[402905990,1768975833303,-500.0,0.00017726,2]
[402905991,1768975833313,-150.0,0.00017726,2]
[402905992,1768975833322,-150.0,0.00017726,2]
[402905993,1768975833331,-152.84284681,0.00017726,2]
[402905994,1768975833340,-500.0,0.00017726,2]
[402905995,1768975833350,-150.0,0.00017726,2]
[402905996,1768975833360,-150.0,0.00017726,2]
[402905997,1768975833369,-150.0,0.00017726,2]
[402905998,1768975833379,-500.0,0.00017726,2]
[402905999,1768975833389,-152.12222658,0.00017726,2]
[402906000,1768975833396,-156.44146346,0.00017726,2]
[402906001,1768975833403,-500.0,0.00017778,2]
[402906002,1768975833410,-500.0,0.00017778,2]
[402906003,1768975833419,-500.0,0.00017778,2]
[402906004,1768975833426,-504.18156138,0.00017778,2]
[402906005,1768975833435,-646.0,0.00017778,2]
[402906006,1768975833442,-500.0,0.00017778,2]
[402906007,1768975833450,-500.0,0.00017778,2]
[402906008,1768975833458,-500.0,0.00017778,2]
[402906009,1768975833465,-500.0,0.00017778,2]
[402906010,1768975833472,-500.0,0.00017781,2]
[402906011,1768975833480,-150.0,0.00017781,2]
[402906012,1768975833488,-150.0,0.00017781,2]
[402906013,1768975833497,-500.0,0.00017781,2]
[402906014,1768975833507,-150.0,0.00017781,2]
[402906015,1768975833516,-150.0,0.00017781,2]
[402906016,1768975833526,-201.41286545,0.00017781,2]
[402906017,1768975833536,-500.0,0.00017781,2]
[402906018,1768975833545,-500.0,0.00017829,2]
[402906019,1768975833555,-535.36099547,0.00017833,2]
[402906020,1768975833563,-500.0,0.00017833,2]
[402906021,1768975833573,-500.0,0.00017833,2]
[402906022,1768975833582,-500.0,0.00017833,2]
[402906023,1768975833591,-500.0,0.00017833,2]
[402906024,1768975833600,-500.0,0.00017833,2]
[402906025,1768975833609,-500.0,0.00017833,2]
[402906026,1768975833619,-577.0,0.00017836,2]
[402906027,1768975833628,-269.8196,0.00017836,2]
[402906028,1768975833637,-150.0,0.00017836,2]
[402906029,1768975833647,-500.0,0.00017836,2]
[402906030,1768975833656,-150.0,0.00017836,2]
[402906031,1768975833666,-150.0,0.00017836,2]
[402906032,1768975833675,-500.0,0.00017836,2]
[402906033,1768975833684,-419.4,0.00017838,2]
[402906034,1768975833693,-5237.20489654,0.0001786,2]
[402906035,1768975833702,-200.0,0.00017879,2]
[402906036,1768975833712,-235.40995017,0.00017883,2]
[402906037,1768975833722,-500.0,0.00017887,2]
[402906038,1768975833731,-500.0,0.00017887,2]
[402906039,1768975833741,-500.0,0.00017887,2]
[402906040,1768975833751,-500.0,0.00017887,2]
[402906041,1768975833760,-500.0,0.00017887,2]
[402906042,1768975833770,-150.0,0.0001789,2]
[402906043,1768975833779,-500.0,0.0001789,2]
[402906044,1768975833789,-232.97899023,0.0001789,2]
[402906045,1768975833799,-205.6158133,0.0001789,2]
[402906046,1768975833808,-1447.7838,0.000179,2]
[402906047,1768975833818,-321.42864094,0.000179,2]
[402906048,1768975833827,-174.38650115,0.000179,2]
[402906049,1768975833836,-2812.37732375,0.000179,2]
[402906050,1768975833845,-1055.24084332,0.000179,2]
[402906051,1768975833854,-500.0,0.00017942,2]
[402906052,1768975833864,-172.78307317,0.00017942,2]
[402906053,1768975833874,-632.76289655,0.00017942,2]
[402906054,1768975833883,-500.0,0.00017942,2]
[402906055,1768975833892,-500.0,0.00017942,2]
[402906056,1768975833902,-150.0,0.00017945,2]
[402906057,1768975833911,-630.82232276,0.00017945,2]
[402906058,1768975833921,-150.0,0.00017973,2]
[402906059,1768975833931,-150.0,0.00017973,2]
[402906060,1768975833940,-186.61,0.0001799,2]
[402906061,1768975833950,-554.0,0.00017997,2]
[402906062,1768975833960,-393.97502998,0.00017997,2]
[402906063,1768975833970,-7595.0,0.00017999,2]
[402906064,1768975833979,-575.71488184,0.00017999,2]
[402906065,1768975833989,-181.58150985,0.00017999,2]
[402906066,1768975833998,-27058.24804573,0.00017999,2]
[402906067,1768975834012,-2361.25268707,0.00017999,2]
[402906068,1768975834021,-9045.600931,0.00017999,2]
[402906069,1768975834032,-825.5649704,0.00017999,2]
[402906070,1768975834041,-300.0,0.00017999,2]
[402906071,1768975834051,-12341.4852679,0.00017999,2]
[402906072,1768975834061,-1264.0,0.00018,2]
[402906073,1768975834073,-1264.0,0.00018,2]
[402906074,1768975834082,-250.0,0.00018,2]
[402906075,1768975834092,-15276.24585717,0.00018,2]
[402906076,1768975834104,-703.96192003,0.00018,2]
[402906077,1768975834116,-4189.30518796,0.00018,2]
[402906084,1768975837816,-151.0,0.00017312,2]
[402906085,1768975837826,-500.0,0.00017723,2]
[402906086,1768975837835,-150.0,0.00017723,2]
[402906087,1768975837844,-150.0,0.00017723,2]
[402906088,1768975837853,-500.0,0.00017723,2]
[402906089,1768975837863,-500.0,0.00017723,2]
[402906090,1768975837872,-500.0,0.00017723,2]
[402906091,1768975837881,-500.0,0.00017723,2]
[402906092,1768975837890,-500.0,0.00017723,2]
[402906093,1768975837900,-500.0,0.00017723,2]
[402906094,1768975837909,-500.0,0.00017778,2]
[402906095,1768975837919,-500.0,0.00017778,2]
[402906096,1768975837928,-500.0,0.00017778,2]
[402906097,1768975837938,-500.0,0.00017778,2]
[402906098,1768975837947,-500.0,0.00017778,2]
[402906099,1768975837957,-500.0,0.00017778,2]
[402906100,1768975837966,-500.0,0.00017778,2]
[402906101,1768975837976,-500.0,0.00017778,2]
[402906102,1768975837986,-500.0,0.00017833,2]
[402906103,1768975837995,-500.0,0.00017833,2]
[402906104,1768975838004,-500.0,0.00017833,2]
[402906105,1768975838017,-237.16668933,0.00017833,2]
[402906106,1768975838026,-396.5190321,0.00017833,2]
[402906107,1768975838036,-500.0,0.00017833,2]
[402906108,1768975838045,-500.0,0.00017833,2]
[402906109,1768975838055,-500.0,0.00017833,2]
[402906110,1768975838067,-500.0,0.00017887,2]
[402906111,1768975838076,-500.0,0.00017887,2]
[402906112,1768975838086,-423.52774177,0.00017887,2]
[402906113,1768975838096,-500.0,0.00017887,2]
[402906115,1768975838107,-240.53313232,0.00017887,2]
[402906117,1768975838116,-500.0,0.00017887,2]
[402906119,1768975838126,-500.0,0.00017887,2]
[402906121,1768975838137,-500.0,0.00017942,2]
[402906124,1768975838147,-500.0,0.00017942,2]
[402906126,1768975838157,-500.0,0.00017942,2]
[402906127,1768975838166,-500.0,0.00017942,2]
[402906129,1768975838175,-500.0,0.00017942,2]
[402906131,1768975838184,-500.0,0.00017997,2]
[402906134,1768975838194,-500.0,0.00017997,2]
[402906135,1768975838203,-291.42851787,0.00017997,2]
[402906138,1768975838212,-500.0,0.00017997,2]
[402906141,1768975838221,-354.0,0.00017997,2]
[402906143,1768975838231,-500.0,0.00017997,2]
[402906144,1768975838241,-1099297.86296379,0.00018,2]
[402906146,1768975838250,-45368.50967968,0.00018,2]
[402906148,1768975838259,-1646456.7851961,0.00018,2]
[402906153,1768975838290,-1279.8916881,0.00018,2]
[402906199,1768975840296,-385.41000007,0.000179,2]
[402906202,1768975840308,-323.37080497,0.000179,2]
[402906204,1768975840317,-162.97830375,0.00018,2]
[402906255,1768975843129,-515.89796924,0.00017639,2]
[402906256,1768975843140,-47.76820614,0.00018,2]
[402906262,1768975845878,-459.09000001,0.00018,2]
[402906263,1768975845892,-1759.73937534,0.00018,2]
[402906264,1768975845908,-386.1600001,0.00018,2]
[402906265,1768975845919,-1498.2,0.00018,2]
[402906266,1768975845930,-666.90813049,0.00018,2]
[402906368,1768976757099,150.0,0.00016385,2]